[Event "*** Titled Tuesday Blitz"]
[Site "Chess.com"]
[Date "2020.03.03"]
[Round "3"]
[White "ahachess"]
[Black "Sunnika"]
[Result "0-1"]
[WhiteElo "2224"]
[BlackElo "2403"]
[TimeControl "180+1"]
[EndTime "9:27:36 PST"]
[Termination "Sunnika won by resignation"]

1. d4 {[%clk 0:03:00.9]} 1... Nf6 {[%clk 0:02:59.8]} 2. c4 {[%clk 0:03:00.7]}
2... c5 {[%clk 0:03:00.1]} 3. d5 {[%clk 0:02:59.9]} 3... e6 {[%clk 0:03:00.7]}
4. Nc3 {[%clk 0:02:59.7]} 4... exd5 {[%clk 0:03:01.3]} 5. cxd5 {[%clk
0:02:59.7]} 5... d6 {[%clk 0:03:01.9]} 6. g3 {[%clk 0:02:59.9]} 6... g6 {[%clk
0:03:01.5]} 7. Bg2 {[%clk 0:03:00.2]} 7... Bg7 {[%clk 0:03:02.1]} 8. Nf3 {[%clk
0:03:00.5]} 8... O-O {[%clk 0:03:02.5]} 9. O-O {[%clk 0:03:00.7]} 9... a6 {[%clk
0:03:01.5]} 10. a4 {[%clk 0:03:00.4]} 10... Re8 {[%clk 0:03:01.8]} 11. Bf4
{[%clk 0:02:44.7]} 11... Bf5 {[%clk 0:03:01.4]} 12. Nd2 {[%clk 0:02:43.5]} 12...
Nh5 {[%clk 0:02:59.2]} 13. Be3 {[%clk 0:02:32]} 13... Rxe3 {[%clk 0:02:56.7]}
14. fxe3 {[%clk 0:02:30.4]} 14... Bh6 {[%clk 0:02:33.3]} 15. Nc4 {[%clk
0:02:24.2]} 15... Qe7 {[%clk 0:02:26.2]} 16. e4 {[%clk 0:01:55.2]} 16... Bg4
{[%clk 0:02:26.2]} 17. Bf3 {[%clk 0:01:47]} 17... Nf6 {[%clk 0:02:19.2]} 18. e3
{[%clk 0:01:35.6]} 18... Bh3 {[%clk 0:02:13]} 19. Rf2 {[%clk 0:01:34.1]} 19...
Nbd7 {[%clk 0:02:13.2]} 20. Qc2 {[%clk 0:01:19.6]} 20... Re8 {[%clk 0:02:12.5]}
21. Bg2 {[%clk 0:01:18.2]} 21... Bxg2 {[%clk 0:01:59.1]} 22. Kxg2 {[%clk
0:01:19.1]} 22... Ng4 {[%clk 0:01:58.6]} 23. Rf4 {[%clk 0:01:00.4]} 23... Bxf4
{[%clk 0:01:46.6]} 24. exf4 {[%clk 0:01:01.3]} 24... Nb6 {[%clk 0:01:31.9]} 25.
Kf3 {[%clk 0:00:28.4]} 25... Nxc4 {[%clk 0:01:30.7]} 26. Kxg4 {[%clk 0:00:28.7]}
26... Ne3+ {[%clk 0:01:30.4]} 0-1

[Event "*** Titled Tuesday Blitz"]
[Site "Chess.com"]
[Date "2020.03.03"]
[Round "3"]
[White "Rish_97"]
[Black "Frolik67"]
[Result "1-0"]
[WhiteElo "2763"]
[BlackElo "2498"]
[TimeControl "180+1"]
[EndTime "9:27:43 PST"]
[Termination "Rish_97 won by resignation"]

1. d4 {[%clk 0:03:00]} 1... e6 {[%clk 0:02:58.2]} 2. c4 {[%clk 0:03:00]} 2... d5
{[%clk 0:02:56.4]} 3. Nc3 {[%clk 0:02:59.7]} 3... f5 {[%clk 0:02:50.9]} 4. Bf4
{[%clk 0:02:56.7]} 4... Nf6 {[%clk 0:02:49.4]} 5. e3 {[%clk 0:02:43.7]} 5... c6
{[%clk 0:02:47.8]} 6. Bd3 {[%clk 0:02:35.7]} 6... Bd6 {[%clk 0:02:47]} 7. Nf3
{[%clk 0:02:35.8]} 7... O-O {[%clk 0:02:46.6]} 8. Qc2 {[%clk 0:02:31.3]} 8...
Ne4 {[%clk 0:02:46.3]} 9. O-O {[%clk 0:02:31.3]} 9... Qe7 {[%clk 0:02:42.2]} 10.
c5 {[%clk 0:02:14.3]} 10... Bc7 {[%clk 0:02:34]} 11. b4 {[%clk 0:02:04.7]} 11...
h6 {[%clk 0:02:15]} 12. Ne5 {[%clk 0:01:52.9]} 12... Bxe5 {[%clk 0:02:08.4]} 13.
Bxe5 {[%clk 0:01:51.8]} 13... Nd7 {[%clk 0:02:08.3]} 14. Bf4 {[%clk 0:01:26.3]}
14... g5 {[%clk 0:02:00.1]} 15. Bxe4 {[%clk 0:01:23.9]} 15... gxf4 {[%clk
0:01:55.7]} 16. Bd3 {[%clk 0:01:24.1]} 16... fxe3 {[%clk 0:01:32]} 17. fxe3
{[%clk 0:01:25]} 17... Qg5 {[%clk 0:01:32.5]} 18. Rf3 {[%clk 0:01:19.7]} 18...
Kh8 {[%clk 0:01:32.8]} 19. Raf1 {[%clk 0:01:18.4]} 19... Nf6 {[%clk 0:01:32.4]}
20. Rg3 {[%clk 0:01:16.4]} 20... Qh5 {[%clk 0:01:30]} 21. Ne2 {[%clk 0:01:16.2]}
21... Rg8 {[%clk 0:01:27.7]} 22. Nf4 {[%clk 0:01:16.3]} 22... Qf7 {[%clk
0:01:27.4]} 23. Rff3 {[%clk 0:01:13.1]} 23... Ne4 {[%clk 0:01:25.1]} 24. Rxg8+
{[%clk 0:01:11.4]} 24... Kxg8 {[%clk 0:01:25.1]} 25. Bxe4 {[%clk 0:01:11.4]}
25... fxe4 {[%clk 0:01:26]} 26. Rg3+ {[%clk 0:01:12.3]} 26... Kh7 {[%clk
0:01:26.3]} 27. Qe2 {[%clk 0:01:05.1]} 27... Bd7 {[%clk 0:01:25.1]} 28. Qh5
{[%clk 0:00:55.6]} 28... Rf8 {[%clk 0:01:18.7]} 29. Rg6 {[%clk 0:00:54.2]} 1-0

[Event "*** Titled Tuesday Blitz"]
[Site "Chess.com"]
[Date "2020.03.03"]
[Round "3"]
[White "Spring199"]
[Black "Korona_91"]
[Result "0-1"]
[WhiteElo "2238"]
[BlackElo "2426"]
[TimeControl "180+1"]
[EndTime "9:27:49 PST"]
[Termination "Korona_91 won by resignation"]

1. d4 {[%clk 0:03:00.9]} 1... g6 {[%clk 0:02:58.1]} 2. c4 {[%clk 0:03:00.4]}
2... Bg7 {[%clk 0:02:58.3]} 3. Nc3 {[%clk 0:03:00]} 3... d6 {[%clk 0:02:57.4]}
4. e4 {[%clk 0:02:59.2]} 4... Nd7 {[%clk 0:02:57]} 5. Nge2 {[%clk 0:02:58.3]}
5... e5 {[%clk 0:02:56.8]} 6. d5 {[%clk 0:02:57.8]} 6... Ne7 {[%clk 0:02:55.1]}
7. Ng3 {[%clk 0:02:56.8]} 7... O-O {[%clk 0:02:52.2]} 8. Bd3 {[%clk 0:02:54.4]}
8... f5 {[%clk 0:02:44.4]} 9. exf5 {[%clk 0:02:50.9]} 9... gxf5 {[%clk
0:02:43.8]} 10. O-O {[%clk 0:02:50.3]} 10... e4 {[%clk 0:02:40]} 11. Bc2 {[%clk
0:02:45.8]} 11... Ne5 {[%clk 0:02:38.2]} 12. Qe2 {[%clk 0:02:41.9]} 12... N7g6
{[%clk 0:02:11]} 13. Nh5 {[%clk 0:02:37.8]} 13... Qh4 {[%clk 0:02:05.8]} 14.
Nxg7 {[%clk 0:02:32.6]} 14... Kxg7 {[%clk 0:01:59]} 15. b3 {[%clk 0:02:06.1]}
15... f4 {[%clk 0:01:49.7]} 16. Qxe4 {[%clk 0:02:00.7]} 16... Bf5 {[%clk
0:01:44.5]} 17. Qe2 {[%clk 0:01:59.7]} 17... f3 {[%clk 0:01:41.7]} 18. gxf3
{[%clk 0:01:00.3]} 18... Bxc2 {[%clk 0:01:39.6]} 19. f4 {[%clk 0:00:55.7]} 19...
Bd3 {[%clk 0:01:34.2]} 20. Qe3 {[%clk 0:00:51.2]} 20... Ng4 {[%clk 0:01:26.5]}
21. Qd4+ {[%clk 0:00:49.8]} 21... Kg8 {[%clk 0:01:24.3]} 0-1

[Event "*** Titled Tuesday Blitz"]
[Site "Chess.com"]
[Date "2020.03.03"]
[Round "3"]
[White "Willychess95"]
[Black "Quiet_Desperation"]
[Result "1-0"]
[WhiteElo "2552"]
[BlackElo "2050"]
[TimeControl "180+1"]
[EndTime "9:27:55 PST"]
[Termination "Willychess95 won by resignation"]

1. e4 {[%clk 0:02:59.4]} 1... e6 {[%clk 0:02:59.7]} 2. d4 {[%clk 0:02:58.9]}
2... d5 {[%clk 0:02:59.3]} 3. Nc3 {[%clk 0:02:58.6]} 3... Nf6 {[%clk 0:02:58.8]}
4. e5 {[%clk 0:02:57.3]} 4... Nfd7 {[%clk 0:02:58.4]} 5. f4 {[%clk 0:02:55.4]}
5... c5 {[%clk 0:02:58]} 6. Nf3 {[%clk 0:02:55.7]} 6... Nc6 {[%clk 0:02:58]} 7.
Be3 {[%clk 0:02:50.2]} 7... Be7 {[%clk 0:02:57.3]} 8. Qd2 {[%clk 0:02:41.4]}
8... O-O {[%clk 0:02:56]} 9. dxc5 {[%clk 0:02:18.9]} 9... Nxc5 {[%clk
0:02:54.9]} 10. Nd4 {[%clk 0:02:18.5]} 10... Bd7 {[%clk 0:02:53.2]} 11. O-O-O
{[%clk 0:02:17.5]} 11... Rc8 {[%clk 0:02:50.9]} 12. Kb1 {[%clk 0:02:16]} 12...
Nxd4 {[%clk 0:02:47.1]} 13. Bxd4 {[%clk 0:02:15.7]} 13... a6 {[%clk 0:02:47.4]}
14. g4 {[%clk 0:02:14.2]} 14... b5 {[%clk 0:02:46.9]} 15. Bd3 {[%clk 0:02:13.7]}
15... b4 {[%clk 0:02:45.6]} 16. Ne2 {[%clk 0:02:13.6]} 16... Nxd3 {[%clk
0:02:42.2]} 17. cxd3 {[%clk 0:02:07.1]} 17... f6 {[%clk 0:02:37.5]} 18. Qe3
{[%clk 0:01:54.4]} 18... fxe5 {[%clk 0:02:29.9]} 19. Bxe5 {[%clk 0:01:55.3]}
19... a5 {[%clk 0:02:26]} 20. Rc1 {[%clk 0:01:51.9]} 20... a4 {[%clk 0:02:19]}
21. g5 {[%clk 0:01:46.4]} 21... Qa5 {[%clk 0:02:10.2]} 22. Nd4 {[%clk
0:01:32.8]} 22... Bc5 {[%clk 0:01:43.7]} 23. h4 {[%clk 0:01:28.9]} 23... b3
{[%clk 0:01:28]} 24. a3 {[%clk 0:01:28.6]} 24... Bxd4 {[%clk 0:01:11.2]} 25.
Qxd4 {[%clk 0:01:22.5]} 25... Rxc1+ {[%clk 0:01:09.9]} 26. Rxc1 {[%clk
0:01:23.4]} 26... Rc8 {[%clk 0:01:09.4]} 27. Rxc8+ {[%clk 0:01:15]} 27... Bxc8
{[%clk 0:01:08.7]} 28. Qe3 {[%clk 0:01:15.5]} 28... Ba6 {[%clk 0:01:00.7]} 29.
Bc3 {[%clk 0:01:15.7]} 29... Qd8 {[%clk 0:00:44.1]} 30. Qxe6+ {[%clk 0:01:13.6]}
1-0

[Event "*** Titled Tuesday Blitz"]
[Site "Chess.com"]
[Date "2020.03.03"]
[Round "3"]
[White "BeanScreen"]
[Black "parmupill123"]
[Result "1-0"]
[WhiteElo "2659"]
[BlackElo "2445"]
[TimeControl "180+1"]
[EndTime "9:27:57 PST"]
[Termination "BeanScreen won by resignation"]

1. e4 {[%clk 0:03:00.9]} 1... e6 {[%clk 0:03:00.1]} 2. d4 {[%clk 0:02:57.4]}
2... d5 {[%clk 0:03:00.1]} 3. Nc3 {[%clk 0:02:58.1]} 3... Bb4 {[%clk 0:02:59.2]}
4. exd5 {[%clk 0:02:58.4]} 4... exd5 {[%clk 0:02:58.1]} 5. Bd3 {[%clk
0:02:58.8]} 5... Nf6 {[%clk 0:02:55.4]} 6. Nf3 {[%clk 0:02:58.7]} 6... O-O
{[%clk 0:02:54.2]} 7. O-O {[%clk 0:02:54.2]} 7... Bg4 {[%clk 0:02:52.4]} 8. Bg5
{[%clk 0:02:53]} 8... c6 {[%clk 0:02:51.9]} 9. h3 {[%clk 0:02:53.1]} 9... Bh5
{[%clk 0:02:51.4]} 10. Bf5 {[%clk 0:02:53.6]} 10... Bg6 {[%clk 0:02:46.1]} 11.
Nh4 {[%clk 0:02:52.1]} 11... Be7 {[%clk 0:02:27.9]} 12. Re1 {[%clk 0:02:51.6]}
12... Nbd7 {[%clk 0:02:22.5]} 13. Qf3 {[%clk 0:02:46.8]} 13... Re8 {[%clk
0:02:18.8]} 14. Re2 {[%clk 0:02:43.2]} 14... Qb6 {[%clk 0:00:57.5]} 15. Bxd7
{[%clk 0:02:42.2]} 15... Nxd7 {[%clk 0:00:42.4]} 16. Bxe7 {[%clk 0:02:41.2]}
16... Bxc2 {[%clk 0:00:40.6]} 17. Rxc2 {[%clk 0:02:37.1]} 17... Rxe7 {[%clk
0:00:39]} 18. Nf5 {[%clk 0:02:37.5]} 18... Re6 {[%clk 0:00:38.2]} 19. Qg4 {[%clk
0:02:36.3]} 19... g6 {[%clk 0:00:35.2]} 20. Na4 {[%clk 0:01:46.3]} 20... Qb4
{[%clk 0:00:34.5]} 21. b3 {[%clk 0:01:30.1]} 21... Nf6 {[%clk 0:00:32.3]} 22.
Nh6+ {[%clk 0:01:22.6]} 22... Kg7 {[%clk 0:00:30.7]} 23. Qf4 {[%clk 0:01:22.9]}
23... Nh5 {[%clk 0:00:26.6]} 24. Qxf7+ {[%clk 0:01:22.8]} 24... Kxh6 {[%clk
0:00:23.1]} 25. Qxe6 {[%clk 0:01:23.2]} 25... Qxd4 {[%clk 0:00:22.6]} 26. Qe3+
{[%clk 0:01:23.3]} 1-0

[Event "*** Titled Tuesday Blitz"]
[Site "Chess.com"]
[Date "2020.03.03"]
[Round "3"]
[White "VALPARAISO37"]
[Black "viktorko131"]
[Result "1-0"]
[WhiteElo "2378"]
[BlackElo "2118"]
[TimeControl "180+1"]
[EndTime "9:27:57 PST"]
[Termination "VALPARAISO37 won on time"]

1. d4 {[%clk 0:02:52.8]} 1... Nf6 {[%clk 0:02:58.4]} 2. c4 {[%clk 0:02:52.4]}
2... e6 {[%clk 0:02:57.4]} 3. Nc3 {[%clk 0:02:52.5]} 3... Bb4 {[%clk 0:02:56.6]}
4. a3 {[%clk 0:02:52.6]} 4... Bxc3+ {[%clk 0:02:54.8]} 5. bxc3 {[%clk
0:02:53.2]} 5... c5 {[%clk 0:02:53.7]} 6. e3 {[%clk 0:02:53.2]} 6... O-O {[%clk
0:02:52.1]} 7. Bd3 {[%clk 0:02:53.4]} 7... d6 {[%clk 0:02:47.4]} 8. Ne2 {[%clk
0:02:52.7]} 8... b6 {[%clk 0:02:43.8]} 9. O-O {[%clk 0:02:50.8]} 9... e5 {[%clk
0:02:06.1]} 10. e4 {[%clk 0:02:49.2]} 10... Nc6 {[%clk 0:02:01.1]} 11. h3 {[%clk
0:02:34.7]} 11... Re8 {[%clk 0:01:56.1]} 12. d5 {[%clk 0:02:31.5]} 12... Na5
{[%clk 0:01:49.1]} 13. Ng3 {[%clk 0:02:27.7]} 13... Ba6 {[%clk 0:01:42.2]} 14.
f4 {[%clk 0:02:27.1]} 14... Bxc4 {[%clk 0:01:15.6]} 15. fxe5 {[%clk 0:02:26.3]}
15... Rxe5 {[%clk 0:01:01]} 16. Bf4 {[%clk 0:02:26]} 16... Nd7 {[%clk
0:00:55.3]} 17. Nf5 {[%clk 0:02:20.8]} 17... Bxd3 {[%clk 0:00:41.6]} 18. Qxd3
{[%clk 0:02:18.4]} 18... Qf6 {[%clk 0:00:24.7]} 19. c4 {[%clk 0:02:08.2]} 19...
Rae8 {[%clk 0:00:21.9]} 20. Rae1 {[%clk 0:02:03.2]} 20... g5 {[%clk 0:00:04.7]}
21. Qg3 {[%clk 0:01:55.1]} 21... h6 {[%clk 0:00:02.8]} 22. h4 {[%clk 0:01:47.4]}
22... Nxc4 {[%clk 0:00:01.3]} 23. hxg5 {[%clk 0:01:45.5]} 23... hxg5 {[%clk
0:00:01.1]} 24. Bxg5 {[%clk 0:01:45.5]} 24... Qg6 {[%clk 0:00:01.5]} 25. Nh6+
{[%clk 0:01:38.1]} 1-0

[Event "*** Titled Tuesday Blitz"]
[Site "Chess.com"]
[Date "2020.03.03"]
[Round "3"]
[White "NemtsevIgor"]
[Black "MokshAD1603"]
[Result "0-1"]
[WhiteElo "2349"]
[BlackElo "2162"]
[TimeControl "180+1"]
[EndTime "9:27:59 PST"]
[Termination "MokshAD1603 won by resignation"]

1. d4 {[%clk 0:03:00.9]} 1... f5 {[%clk 0:02:58.5]} 2. Nc3 {[%clk 0:03:00]} 2...
Nf6 {[%clk 0:02:57.3]} 3. Bg5 {[%clk 0:02:59.4]} 3... d5 {[%clk 0:02:56.5]} 4.
Bxf6 {[%clk 0:02:59.2]} 4... exf6 {[%clk 0:02:57.4]} 5. e3 {[%clk 0:02:59.5]}
5... c6 {[%clk 0:02:57]} 6. Bd3 {[%clk 0:02:56.9]} 6... Qb6 {[%clk 0:02:49.2]}
7. Rb1 {[%clk 0:02:53.6]} 7... Bb4 {[%clk 0:02:47.2]} 8. Ne2 {[%clk 0:02:49.1]}
8... Be6 {[%clk 0:02:47.1]} 9. O-O {[%clk 0:02:48]} 9... g6 {[%clk 0:02:46.5]}
10. Nf4 {[%clk 0:02:46.8]} 10... Bf7 {[%clk 0:02:46.5]} 11. Nce2 {[%clk
0:02:45.7]} 11... Nd7 {[%clk 0:02:45.7]} 12. h4 {[%clk 0:02:40.7]} 12... g5
{[%clk 0:02:36.4]} 13. Nh3 {[%clk 0:02:31.3]} 13... h6 {[%clk 0:02:13.7]} 14.
Bxf5 {[%clk 0:02:30.2]} 14... O-O-O {[%clk 0:02:13.4]} 15. b3 {[%clk 0:02:09.5]}
15... Kb8 {[%clk 0:02:12.2]} 16. c4 {[%clk 0:02:09.3]} 16... dxc4 {[%clk
0:02:06.6]} 17. bxc4 {[%clk 0:02:08.8]} 17... Bxc4 {[%clk 0:02:06.8]} 18. a3
{[%clk 0:02:02.8]} 18... Qa6 {[%clk 0:02:06.5]} 19. Rxb4 {[%clk 0:01:03.3]}
19... Bxe2 {[%clk 0:02:05.5]} 20. Qc1 {[%clk 0:00:50.4]} 20... Bxf1 {[%clk
0:02:04.9]} 21. Qxf1 {[%clk 0:00:51.3]} 21... Qxf1+ {[%clk 0:02:05.1]} 22. Kxf1
{[%clk 0:00:52.2]} 22... Nb6 {[%clk 0:02:05.3]} 23. Bc2 {[%clk 0:00:46.9]} 23...
Rd5 {[%clk 0:02:01.5]} 24. h5 {[%clk 0:00:42.9]} 24... Kc7 {[%clk 0:01:57.7]}
25. Rb1 {[%clk 0:00:40.2]} 25... Ra5 {[%clk 0:01:57]} 26. Rb3 {[%clk 0:00:37.5]}
26... Nc4 {[%clk 0:01:56.6]} 27. Rc3 {[%clk 0:00:29.7]} 27... b5 {[%clk
0:01:54.4]} 28. Bg6 {[%clk 0:00:21.2]} 28... Rxa3 {[%clk 0:01:53.5]} 29. Rc1
{[%clk 0:00:21.8]} 29... a5 {[%clk 0:01:49.4]} 30. f4 {[%clk 0:00:20]} 30... a4
{[%clk 0:01:48.6]} 31. fxg5 {[%clk 0:00:20.1]} 31... fxg5 {[%clk 0:01:48.6]} 32.
e4 {[%clk 0:00:19]} 32... Rf8+ {[%clk 0:01:48.3]} 33. Kg1 {[%clk 0:00:18.6]}
33... Ra2 {[%clk 0:01:48.5]} 34. d5 {[%clk 0:00:18]} 34... a3 {[%clk 0:01:47.8]}
35. dxc6 {[%clk 0:00:17.9]} 35... Kxc6 {[%clk 0:01:48.4]} 36. Nf2 {[%clk
0:00:16.9]} 36... Rfxf2 {[%clk 0:01:46.5]} 0-1

[Event "*** Titled Tuesday Blitz"]
[Site "Chess.com"]
[Date "2020.03.03"]
[Round "3"]
[White "GulamaliRises"]
[Black "iturrizaga"]
[Result "0-1"]
[WhiteElo "2532"]
[BlackElo "2962"]
[TimeControl "180+1"]
[EndTime "9:28:19 PST"]
[Termination "iturrizaga won by resignation"]

1. e4 {[%clk 0:03:00.9]} 1... c5 {[%clk 0:02:59.7]} 2. Nf3 {[%clk 0:02:56.4]}
2... e6 {[%clk 0:02:57]} 3. d4 {[%clk 0:02:56.2]} 3... cxd4 {[%clk 0:02:57.9]}
4. Nxd4 {[%clk 0:02:57.1]} 4... a6 {[%clk 0:02:58.4]} 5. Bd3 {[%clk 0:02:57.2]}
5... g6 {[%clk 0:02:57.8]} 6. O-O {[%clk 0:02:52.5]} 6... Bg7 {[%clk 0:02:58.3]}
7. c3 {[%clk 0:02:52.8]} 7... Ne7 {[%clk 0:02:57.9]} 8. f4 {[%clk 0:02:45.2]}
8... f5 {[%clk 0:02:53.4]} 9. exf5 {[%clk 0:02:36.3]} 9... gxf5 {[%clk
0:02:54.3]} 10. Qh5+ {[%clk 0:02:29.6]} 10... Ng6 {[%clk 0:02:35.2]} 11. Nf3
{[%clk 0:02:29]} 11... Nc6 {[%clk 0:02:28.4]} 12. Be3 {[%clk 0:02:27.7]} 12...
O-O {[%clk 0:02:18.4]} 13. Ng5 {[%clk 0:02:25.1]} 13... h6 {[%clk 0:02:18.9]}
14. Qxg6 {[%clk 0:01:41.8]} 14... hxg5 {[%clk 0:02:18]} 15. fxg5 {[%clk
0:01:42.7]} 15... Ne5 {[%clk 0:02:16]} 16. Qh5 {[%clk 0:01:42.9]} 16... Nxd3
{[%clk 0:02:16]} 17. g6 {[%clk 0:01:43.1]} 17... Rf6 {[%clk 0:02:15]} 18. Qh7+
{[%clk 0:01:42.1]} 18... Kf8 {[%clk 0:02:14.5]} 19. Bh6 {[%clk 0:01:42.2]} 19...
Bxh6 {[%clk 0:02:05.9]} 20. Qxh6+ {[%clk 0:01:32.1]} 20... Ke7 {[%clk
0:02:02.2]} 21. Nd2 {[%clk 0:01:16.4]} 21... Qg8 {[%clk 0:01:55]} 22. Qe3 {[%clk
0:01:09.6]} 22... Rxg6 {[%clk 0:01:32]} 23. g3 {[%clk 0:00:57.5]} 23... Nxb2
{[%clk 0:01:27.2]} 24. Rab1 {[%clk 0:00:52.4]} 24... Na4 {[%clk 0:01:20.4]} 25.
Nc4 {[%clk 0:00:48.9]} 25... b5 {[%clk 0:01:13.3]} 26. Ne5 {[%clk 0:00:49.1]}
26... d6 {[%clk 0:01:06.1]} 27. Nxg6+ {[%clk 0:00:39]} 27... Qxg6 {[%clk
0:01:07]} 28. c4 {[%clk 0:00:36]} 28... Bd7 {[%clk 0:01:04.3]} 29. Qf3 {[%clk
0:00:19.9]} 0-1

[Event "*** Titled Tuesday Blitz"]
[Site "Chess.com"]
[Date "2020.03.03"]
[Round "3"]
[White "AminMolaei"]
[Black "Zkid"]
[Result "0-1"]
[WhiteElo "2527"]
[BlackElo "2869"]
[TimeControl "180+1"]
[EndTime "9:28:25 PST"]
[Termination "Zkid won by resignation"]

1. d4 {[%clk 0:03:00.9]} 1... d5 {[%clk 0:02:59.5]} 2. c4 {[%clk 0:03:01.4]}
2... dxc4 {[%clk 0:02:59.9]} 3. Nf3 {[%clk 0:03:01.1]} 3... Nf6 {[%clk 0:03:00]}
4. e3 {[%clk 0:03:01.4]} 4... e6 {[%clk 0:02:59.8]} 5. Bxc4 {[%clk 0:03:01.7]}
5... c5 {[%clk 0:03:00.3]} 6. O-O {[%clk 0:03:00.1]} 6... Nc6 {[%clk 0:03:00.5]}
7. dxc5 {[%clk 0:02:59.7]} 7... Qxd1 {[%clk 0:02:59.9]} 8. Rxd1 {[%clk
0:03:00.6]} 8... Bxc5 {[%clk 0:03:00.3]} 9. Nc3 {[%clk 0:03:01.1]} 9... a6
{[%clk 0:02:58.1]} 10. a3 {[%clk 0:03:00.9]} 10... b5 {[%clk 0:02:57.9]} 11. Ba2
{[%clk 0:02:56.8]} 11... Bb7 {[%clk 0:02:54.2]} 12. b4 {[%clk 0:02:56.7]} 12...
Be7 {[%clk 0:02:54.3]} 13. Bb2 {[%clk 0:02:56.8]} 13... O-O {[%clk 0:02:52.2]}
14. Rac1 {[%clk 0:02:57.1]} 14... Rfd8 {[%clk 0:02:49.7]} 15. Ne2 {[%clk
0:02:55.3]} 15... Rxd1+ {[%clk 0:02:38.4]} 16. Rxd1 {[%clk 0:02:54.7]} 16... a5
{[%clk 0:02:39.1]} 17. bxa5 {[%clk 0:02:35.6]} 17... Rxa5 {[%clk 0:02:40]} 18.
Ned4 {[%clk 0:02:34.8]} 18... Nxd4 {[%clk 0:02:10.1]} 19. Nxd4 {[%clk
0:02:28.9]} 19... b4 {[%clk 0:01:59.2]} 20. Nc2 {[%clk 0:01:19.2]} 20... bxa3
{[%clk 0:01:43.5]} 21. Bxa3 {[%clk 0:01:18.9]} 21... Rxa3 {[%clk 0:01:43.5]} 22.
Nxa3 {[%clk 0:01:19.8]} 22... Bxa3 {[%clk 0:01:43.6]} 23. Rd8+ {[%clk
0:01:16.1]} 23... Bf8 {[%clk 0:01:42.6]} 24. f3 {[%clk 0:01:16.6]} 24... g5
{[%clk 0:01:40.5]} 25. Kf2 {[%clk 0:01:16.5]} 25... Kg7 {[%clk 0:01:40]} 26. h3
{[%clk 0:01:12.3]} 26... Bc5 {[%clk 0:01:37.2]} 27. Ke2 {[%clk 0:01:07.4]} 27...
Ba6+ {[%clk 0:01:23.9]} 28. Kd2 {[%clk 0:01:07.2]} 28... Bf1 {[%clk 0:01:21.8]}
29. g4 {[%clk 0:01:01.3]} 29... Bxh3 {[%clk 0:01:18.1]} 30. Ke2 {[%clk 0:01:01]}
30... h5 {[%clk 0:01:16.5]} 31. gxh5 {[%clk 0:01:01]} 31... Nxh5 {[%clk
0:01:13.2]} 32. Rd7 {[%clk 0:01:00.8]} 32... g4 {[%clk 0:00:53]} 33. fxg4 {[%clk
0:00:50.4]} 33... Bxg4+ {[%clk 0:00:53.9]} 34. Kf2 {[%clk 0:00:49.2]} 34... Nf6
{[%clk 0:00:49.3]} 35. Bc4 {[%clk 0:00:45.1]} 35... Nxd7 {[%clk 0:00:48.3]} 0-1

[Event "*** Titled Tuesday Blitz"]
[Site "Chess.com"]
[Date "2020.03.03"]
[Round "3"]
[White "Martins-BR"]
[Black "GM-2023"]
[Result "1-0"]
[WhiteElo "2329"]
[BlackElo "2040"]
[TimeControl "180+1"]
[EndTime "9:28:25 PST"]
[Termination "Martins-BR won on time"]

1. e4 {[%clk 0:03:00.9]} 1... e5 {[%clk 0:02:59.4]} 2. Nf3 {[%clk 0:03:00.8]}
2... Nc6 {[%clk 0:02:59.1]} 3. d4 {[%clk 0:03:00.6]} 3... exd4 {[%clk 0:03:00]}
4. Nxd4 {[%clk 0:03:01.1]} 4... Nf6 {[%clk 0:03:00.1]} 5. Nc3 {[%clk 0:03:00.4]}
5... Bb4 {[%clk 0:02:59.4]} 6. Nxc6 {[%clk 0:03:00.2]} 6... bxc6 {[%clk
0:03:00.3]} 7. Bd3 {[%clk 0:03:00.1]} 7... d5 {[%clk 0:03:00.4]} 8. exd5 {[%clk
0:03:00.2]} 8... cxd5 {[%clk 0:03:01.3]} 9. O-O {[%clk 0:02:59.7]} 9... O-O
{[%clk 0:03:01.5]} 10. h3 {[%clk 0:02:59.7]} 10... c5 {[%clk 0:03:01.2]} 11. Qf3
{[%clk 0:02:36.9]} 11... Be6 {[%clk 0:02:54.4]} 12. Rd1 {[%clk 0:02:32.3]} 12...
h6 {[%clk 0:01:35.2]} 13. Bf4 {[%clk 0:02:24]} 13... Ba5 {[%clk 0:01:02.9]} 14.
Be5 {[%clk 0:02:14.8]} 14... Nd7 {[%clk 0:01:02.4]} 15. Bd6 {[%clk 0:02:14.1]}
15... Re8 {[%clk 0:01:01.1]} 16. Nxd5 {[%clk 0:02:06.8]} 16... Bxd5 {[%clk
0:00:41.5]} 17. Qxd5 {[%clk 0:02:06.4]} 17... Nf6 {[%clk 0:00:14]} 18. Qxc5
{[%clk 0:01:59.6]} 18... Rc8 {[%clk 0:00:13]} 19. Qa3 {[%clk 0:01:58.1]} 19...
Bb6 {[%clk 0:00:09]} 20. Bf5 {[%clk 0:01:50.8]} 20... Rc6 {[%clk 0:00:06.8]} 21.
Bg3 {[%clk 0:01:45.4]} 21... Qa8 {[%clk 0:00:04.8]} 22. Qa4 {[%clk 0:01:39.3]}
22... Ne4 {[%clk 0:00:02.7]} 23. Bxe4 {[%clk 0:01:36.9]} 23... Rf6 {[%clk
0:00:02.5]} 24. Bxa8 {[%clk 0:01:34.2]} 24... Bxf2+ {[%clk 0:00:02.4]} 25. Bxf2
{[%clk 0:01:32.9]} 25... Rxf2 {[%clk 0:00:03.3]} 26. Qxe8+ {[%clk 0:01:30.8]}
26... Kh7 {[%clk 0:00:02.1]} 27. Kxf2 {[%clk 0:01:30.5]} 27... g5 {[%clk
0:00:01]} 28. Qxf7+ {[%clk 0:01:28.7]} 1-0